[Event "Titled Tuesday Blitz March 21 Late 2023"]
[White "Klekowski, Maciej"]
[Black "Matlakov, Maxim"]
[WhiteFideId "1132717"]
[BlackFideId "4168003"]
[WhiteElo "2540"]
[BlackElo "2666"]
[Result "1-0"]
[Round "03"]
[TimeControl "180+2"]
[Date "2023.03.21"]
[WhiteClock "0:00:12"]
[BlackClock "0:00:13"]

1. c4 {[%clk 0:03:00]}  e5 {[%clk 0:02:56]} 2. Nc3 {[%clk 0:02:58]}  Nc6 {[%clk 0:02:56]} 3. g3 {[%clk 0:02:58]}  h5 {[%clk 0:02:57]} 4. Nf3 {[%clk 0:02:58]}  h4 {[%clk 0:02:48]} 5. Nxh4 {[%clk 0:02:48]}  Rxh4 {[%clk 0:02:49]} 6. gxh4 {[%clk 0:02:49]}  Qxh4 {[%clk 0:02:50]} 7. Nd5 {[%clk 0:02:40]}  Nf6 {[%clk 0:02:41]} 8. Nxf6+ {[%clk 0:02:37]}  Qxf6 {[%clk 0:02:40]} 9. e3 {[%clk 0:02:37]}  b6 {[%clk 0:02:29]} 10. Bg2 {[%clk 0:02:23]}  Bb7 {[%clk 0:02:28]} 11. Qf3 {[%clk 0:02:21]}  Qg6 {[%clk 0:02:25]} 12. Qg3 {[%clk 0:02:12]}  Qd3 {[%clk 0:02:23]} 13. b3 {[%clk 0:01:53]}  O-O-O {[%clk 0:02:13]} 14. Bf1 {[%clk 0:01:14]}  Qc2 {[%clk 0:01:58]} 15. Be2 {[%clk 0:01:13]}  Nb4 {[%clk 0:01:40]} 16. O-O {[%clk 0:01:03]}  Bd6 {[%clk 0:01:33]} 17. f3 {[%clk 0:00:43]}  Rh8 {[%clk 0:01:26]} 18. Qxg7 {[%clk 0:00:33]}  Rd8 {[%clk 0:01:18]} 19. Rf2 {[%clk 0:00:14]}  Nd3 {[%clk 0:01:16]} 20. Bxd3 {[%clk 0:00:13]}  Qxd3 {[%clk 0:01:16]} 21. Bb2 {[%clk 0:00:13]}  f6 {[%clk 0:01:08]} 22. Raf1 {[%clk 0:00:10]}  a5 {[%clk 0:01:02]} 23. Rg2 {[%clk 0:00:10]}  Rf8 {[%clk 0:00:39]} 24. Qg6 {[%clk 0:00:09]}  f5 {[%clk 0:00:39]} 25. Qh7 {[%clk 0:00:08]}  Bc6 {[%clk 0:00:39]} 26. Rg8 {[%clk 0:00:08]}  Qxd2 {[%clk 0:00:32]} 27. Rxf8+ {[%clk 0:00:08]}  Bxf8 {[%clk 0:00:32]} 28. Qh8 {[%clk 0:00:07]}  Kb7 {[%clk 0:00:18]} 29. Qxf8 {[%clk 0:00:05]}  Qxe3+ {[%clk 0:00:18]} 30. Rf2 {[%clk 0:00:05]}  f4 {[%clk 0:00:16]} 31. Qf5 {[%clk 0:00:04]}  d6 {[%clk 0:00:11]} 32. Qc2 {[%clk 0:00:03]}  Bxf3 {[%clk 0:00:10]} 33. Qd2 {[%clk 0:00:03]}  Qe4 {[%clk 0:00:10]} 34. Qd5+ {[%clk 0:00:04]}  Qxd5 {[%clk 0:00:10]} 35. cxd5 {[%clk 0:00:05]}  Bxd5 {[%clk 0:00:11]} 36. h4 {[%clk 0:00:06]}  Bf7 {[%clk 0:00:11]} 37. Rg2 {[%clk 0:00:05]}  Kc6 {[%clk 0:00:11]} 38. Rg7 {[%clk 0:00:06]}  Be8 {[%clk 0:00:11]} 39. Rg8 {[%clk 0:00:06]}  Bf7 {[%clk 0:00:11]} 40. Rg7 {[%clk 0:00:07]}  Be8 {[%clk 0:00:12]} 41. Rg5 {[%clk 0:00:07]}  Kd5 {[%clk 0:00:06]} 42. h5 {[%clk 0:00:08]}  Bb5 {[%clk 0:00:07]} 43. h6 {[%clk 0:00:08]}  Bd3 {[%clk 0:00:08]} 44. Rg7 {[%clk 0:00:08]}  c5 {[%clk 0:00:09]} 45. h7 {[%clk 0:00:08]}  Bxh7 {[%clk 0:00:09]} 46. Rxh7 {[%clk 0:00:09]}  b5 {[%clk 0:00:10]} 47. Kf2 {[%clk 0:00:10]}  c4 {[%clk 0:00:10]} 48. bxc4+ {[%clk 0:00:10]}  bxc4 {[%clk 0:00:11]} 49. Rh6 {[%clk 0:00:10]}  a4 {[%clk 0:00:10]} 50. a3 {[%clk 0:00:10]}  Kc5 {[%clk 0:00:10]} 51. Bc3 {[%clk 0:00:09]}  d5 {[%clk 0:00:10]} 52. Bxe5 {[%clk 0:00:09]}  d4 {[%clk 0:00:10]} 53. Bxf4 {[%clk 0:00:10]}  c3 {[%clk 0:00:10]} 54. Ke2 {[%clk 0:00:10]}  Kc4 {[%clk 0:00:11]} 55. Rc6+ {[%clk 0:00:10]}  Kb3 {[%clk 0:00:11]} 56. Kd3 {[%clk 0:00:10]}  Kxa3 {[%clk 0:00:12]} 57. Kxd4 {[%clk 0:00:11]}  Ka2 {[%clk 0:00:12]} 58. Rxc3 {[%clk 0:00:11]}  Kb2 {[%clk 0:00:12]} 59. Rc4 {[%clk 0:00:10]}  a3 {[%clk 0:00:12]} 60. Be5 {[%clk 0:00:11]}  a2 {[%clk 0:00:12]} 61. Kd3+ {[%clk 0:00:12]}  Kb3 {[%clk 0:00:12]} 62. Rc1 {[%clk 0:00:11]}  Ka3 {[%clk 0:00:12]} 63. Ra1 {[%clk 0:00:12]}  Kb3 {[%clk 0:00:13]} 64. Bc3 {[%clk 0:00:12]}  Ka4 {[%clk 0:00:13]} 65. Kc4 {[%clk 0:00:12]}  Ka3 {[%clk 0:00:13]} 66. Bd4 {[%clk 0:00:12]} 1-0


[Site "https://www.chess.com"]

[Event "Titled Tuesday Blitz March 21 Late 2023"]
[White "Martynov, Pavel"]
[Black "Ibarra Jerez, Jose Carlos"]
[WhiteFideId "4101260"]
[BlackFideId "2226332"]
[WhiteElo "2314"]
[BlackElo "2638"]
[Result "0-1"]
[Round "03"]
[TimeControl "180+2"]
[Date "2023.03.21"]
[WhiteClock "0:00:01"]
[BlackClock "0:00:03"]

1. e4 {[%clk 0:03:00]}  d5 {[%clk 0:02:59]} 2. exd5 {[%clk 0:02:58]}  Qxd5 {[%clk 0:02:59]} 3. Nc3 {[%clk 0:02:58]}  Qd8 {[%clk 0:02:59]} 4. Nf3 {[%clk 0:02:57]}  Nf6 {[%clk 0:02:57]} 5. d4 {[%clk 0:02:58]}  a6 {[%clk 0:02:56]} 6. a4 {[%clk 0:02:54]}  c5 {[%clk 0:02:54]} 7. Bc4 {[%clk 0:02:46]}  cxd4 {[%clk 0:02:52]} 8. Qxd4 {[%clk 0:02:44]}  Qxd4 {[%clk 0:02:51]} 9. Nxd4 {[%clk 0:02:45]}  e6 {[%clk 0:02:46]} 10. O-O {[%clk 0:02:42]}  Bd7 {[%clk 0:02:32]} 11. Be3 {[%clk 0:02:35]}  Nc6 {[%clk 0:02:32]} 12. Rfd1 {[%clk 0:02:20]}  Ng4 {[%clk 0:02:30]} 13. Nxc6 {[%clk 0:01:44]}  Nxe3 {[%clk 0:02:20]} 14. fxe3 {[%clk 0:01:45]}  Bxc6 {[%clk 0:02:19]} 15. Ne2 {[%clk 0:01:36]}  Rc8 {[%clk 0:02:15]} 16. b3 {[%clk 0:01:17]}  Bc5 {[%clk 0:02:11]} 17. Kf2 {[%clk 0:01:15]}  Ke7 {[%clk 0:02:07]} 18. Nd4 {[%clk 0:01:10]}  Be4 {[%clk 0:02:01]} 19. c3 {[%clk 0:00:47]}  Rhd8 {[%clk 0:01:53]} 20. Be2 {[%clk 0:00:45]}  e5 {[%clk 0:01:40]} 21. Nf3 {[%clk 0:00:40]}  f6 {[%clk 0:01:37]} 22. b4 {[%clk 0:00:32]}  Ba7 {[%clk 0:01:35]} 23. c4 {[%clk 0:00:31]}  a5 {[%clk 0:01:30]} 24. bxa5 {[%clk 0:00:29]}  Bc5 {[%clk 0:01:29]} 25. Rxd8 {[%clk 0:00:22]}  Rxd8 {[%clk 0:01:29]} 26. Rd1 {[%clk 0:00:22]}  Ra8 {[%clk 0:01:24]} 27. Bd3 {[%clk 0:00:15]}  Bc6 {[%clk 0:01:18]} 28. Nd2 {[%clk 0:00:14]}  Rd8 {[%clk 0:01:09]} 29. Bc2 {[%clk 0:00:09]}  Bb4 {[%clk 0:01:05]} 30. Nb3 {[%clk 0:00:08]}  Rc8 {[%clk 0:00:58]} 31. Bxh7 {[%clk 0:00:07]}  Bxa4 {[%clk 0:00:57]} 32. Ra1 {[%clk 0:00:07]}  Bxb3 {[%clk 0:00:26]} 33. Rb1 {[%clk 0:00:08]}  Rxc4 {[%clk 0:00:27]} 34. Rxb3 {[%clk 0:00:08]}  e4 {[%clk 0:00:27]} 35. Bf5 {[%clk 0:00:06]}  Kd6 {[%clk 0:00:21]} 36. g4 {[%clk 0:00:04]}  g5 {[%clk 0:00:19]} 37. Kg3 {[%clk 0:00:03]}  Kc5 {[%clk 0:00:17]} 38. Kg2 {[%clk 0:00:02]}  Rc2+ {[%clk 0:00:17]} 39. Kg1 {[%clk 0:00:01]}  Ra2 {[%clk 0:00:12]} 40. Bxe4 {[%clk 0:00:01]}  Bxa5 {[%clk 0:00:08]} 41. Bxb7 {[%clk 0:00:02]}  Bb6 {[%clk 0:00:08]} 42. Be4 {[%clk 0:00:02]}  Ba7 {[%clk 0:00:07]} 43. Bf5 {[%clk 0:00:02]}  Kc4 {[%clk 0:00:08]} 44. Rb7 {[%clk 0:00:02]}  Bxe3+ {[%clk 0:00:07]} 45. Kh1 {[%clk 0:00:02]}  Kd4 {[%clk 0:00:05]} 46. Rd7+ {[%clk 0:00:02]}  Ke5 {[%clk 0:00:05]} 47. Rd1 {[%clk 0:00:02]}  Kf4 {[%clk 0:00:04]} 48. Rf1+ {[%clk 0:00:02]}  Bf2 {[%clk 0:00:05]} 49. Rd1 {[%clk 0:00:02]}  Kf3 {[%clk 0:00:04]} 50. Rd3+ {[%clk 0:00:02]}  Be3 {[%clk 0:00:04]} 51. Rd1 {[%clk 0:00:02]}  Rf2 {[%clk 0:00:04]} 52. Bd3 {[%clk 0:00:02]}  Ra2 {[%clk 0:00:03]} 53. Rf1+ {[%clk 0:00:02]}  Bf2 {[%clk 0:00:03]} 54. Bf5 {[%clk 0:00:02]}  Rb2 {[%clk 0:00:04]} 55. Rd1 {[%clk 0:00:02]}  Ke2 {[%clk 0:00:04]} 56. Rb1 {[%clk 0:00:01]}  Rd2 {[%clk 0:00:04]} 57. Rc1 {[%clk 0:00:01]}  Ke3 {[%clk 0:00:03]} 58. Rc3+ {[%clk 0:00:01]}  Kd4 {[%clk 0:00:03]} 0-1


[Site "https://www.chess.com"]

[Event "Titled Tuesday Blitz March 21 Late 2023"]
[White "Vetoshko, Volodymyr"]
[Black "Chigaev, Maksim"]
[WhiteFideId "14122480"]
[BlackFideId "4108116"]
[WhiteElo "2422"]
[BlackElo "2547"]
[Result "1-0"]
[Round "03"]
[TimeControl "180+2"]
[Date "2023.03.21"]
[WhiteClock "0:00:17"]
[BlackClock "0:00:01"]

1. e4 {[%clk 0:03:00]}  c5 {[%clk 0:03:00]} 2. Nf3 {[%clk 0:03:00]}  Nc6 {[%clk 0:03:01]} 3. d4 {[%clk 0:02:55]}  cxd4 {[%clk 0:03:01]} 4. Nxd4 {[%clk 0:02:56]}  Nf6 {[%clk 0:03:02]} 5. Nc3 {[%clk 0:02:56]}  e5 {[%clk 0:03:03]} 6. Ndb5 {[%clk 0:02:55]}  d6 {[%clk 0:03:03]} 7. Bg5 {[%clk 0:02:55]}  a6 {[%clk 0:03:03]} 8. Na3 {[%clk 0:02:56]}  b5 {[%clk 0:03:04]} 9. Nd5 {[%clk 0:02:56]}  Be7 {[%clk 0:03:04]} 10. Bxf6 {[%clk 0:02:57]}  Bxf6 {[%clk 0:03:04]} 11. c3 {[%clk 0:02:57]}  Rb8 {[%clk 0:03:02]} 12. Nc2 {[%clk 0:02:56]}  Bg5 {[%clk 0:03:03]} 13. g3 {[%clk 0:02:47]}  O-O {[%clk 0:02:59]} 14. Bg2 {[%clk 0:02:47]}  g6 {[%clk 0:02:46]} 15. O-O {[%clk 0:02:40]}  Ne7 {[%clk 0:02:32]} 16. Ncb4 {[%clk 0:02:37]}  Bb7 {[%clk 0:02:15]} 17. Qd3 {[%clk 0:02:24]}  Nxd5 {[%clk 0:01:59]} 18. Nxd5 {[%clk 0:02:25]}  Bxd5 {[%clk 0:01:48]} 19. Qxd5 {[%clk 0:02:26]}  Qb6 {[%clk 0:01:48]} 20. Rad1 {[%clk 0:02:22]}  Be7 {[%clk 0:01:25]} 21. h4 {[%clk 0:02:21]}  a5 {[%clk 0:01:22]} 22. h5 {[%clk 0:02:17]}  Kg7 {[%clk 0:01:17]} 23. Bf3 {[%clk 0:02:16]}  b4 {[%clk 0:01:15]} 24. c4 {[%clk 0:02:15]}  Rbc8 {[%clk 0:00:55]} 25. b3 {[%clk 0:02:04]}  Qc5 {[%clk 0:00:50]} 26. Qd2 {[%clk 0:02:00]}  h6 {[%clk 0:00:37]} 27. Kg2 {[%clk 0:01:55]}  Rcd8 {[%clk 0:00:32]} 28. Qc2 {[%clk 0:01:42]}  Qb6 {[%clk 0:00:18]} 29. Rd5 {[%clk 0:01:41]}  Rc8 {[%clk 0:00:18]} 30. Qd2 {[%clk 0:01:19]}  Rc5 {[%clk 0:00:18]} 31. Rd3 {[%clk 0:01:19]}  Rd8 {[%clk 0:00:09]} 32. Bg4 {[%clk 0:00:51]}  a4 {[%clk 0:00:09]} 33. hxg6 {[%clk 0:00:46]}  fxg6 {[%clk 0:00:09]} 34. Rh1 {[%clk 0:00:42]}  Bg5 {[%clk 0:00:08]} 35. f4 {[%clk 0:00:42]}  exf4 {[%clk 0:00:09]} 36. gxf4 {[%clk 0:00:43]}  Be7 {[%clk 0:00:07]} 37. Be6 {[%clk 0:00:32]}  d5 {[%clk 0:00:05]} 38. Bxd5 {[%clk 0:00:31]}  axb3 {[%clk 0:00:06]} 39. axb3 {[%clk 0:00:31]}  Qf6 {[%clk 0:00:06]} 40. Rdh3 {[%clk 0:00:22]}  h5 {[%clk 0:00:06]} 41. Rg3 {[%clk 0:00:20]}  Ra5 {[%clk 0:00:01]} 42. Rxh5 {[%clk 0:00:17]} 1-0


[Site "https://www.chess.com"]

[Event "Titled Tuesday Blitz March 21 Late 2023"]
[White "Popov, Mikhail"]
[Black "Zhigalko, Sergei"]
[WhiteFideId "4146182"]
[BlackFideId "13502956"]
[WhiteElo "2270"]
[BlackElo "2626"]
[Result "0-1"]
[Round "03"]
[TimeControl "180+2"]
[Date "2023.03.21"]
[WhiteClock "0:00:01"]
[BlackClock "0:00:03"]

1. d4 {[%clk 0:03:00]}  Nf6 {[%clk 0:02:59]} 2. Nf3 {[%clk 0:03:01]}  e6 {[%clk 0:02:59]} 3. Bg5 {[%clk 0:03:01]}  h6 {[%clk 0:02:57]} 4. Bxf6 {[%clk 0:03:00]}  Qxf6 {[%clk 0:02:57]} 5. e4 {[%clk 0:03:01]}  d6 {[%clk 0:02:55]} 6. Nc3 {[%clk 0:03:01]}  Nd7 {[%clk 0:02:54]} 7. Qd2 {[%clk 0:03:02]}  g6 {[%clk 0:02:52]} 8. Bd3 {[%clk 0:02:58]}  h5 {[%clk 0:02:52]} 9. O-O {[%clk 0:02:53]}  Bh6 {[%clk 0:02:52]} 10. Qe2 {[%clk 0:02:53]}  O-O {[%clk 0:02:46]} 11. e5 {[%clk 0:02:47]}  Qe7 {[%clk 0:02:46]} 12. Rfe1 {[%clk 0:02:45]}  d5 {[%clk 0:02:41]} 13. Nb5 {[%clk 0:02:42]}  Nb6 {[%clk 0:02:41]} 14. a4 {[%clk 0:02:36]}  a6 {[%clk 0:02:35]} 15. a5 {[%clk 0:02:36]}  axb5 {[%clk 0:02:20]} 16. axb6 {[%clk 0:02:35]}  Rxa1 {[%clk 0:02:21]} 17. Rxa1 {[%clk 0:02:34]}  c6 {[%clk 0:02:22]} 18. Qe1 {[%clk 0:02:24]}  Bd7 {[%clk 0:02:14]} 19. Ra7 {[%clk 0:02:23]}  Rb8 {[%clk 0:02:14]} 20. Qa5 {[%clk 0:02:14]}  Qd8 {[%clk 0:02:14]} 21. h3 {[%clk 0:01:57]}  Kg7 {[%clk 0:02:05]} 22. Ne1 {[%clk 0:01:33]}  Bc1 {[%clk 0:01:49]} 23. b3 {[%clk 0:01:20]}  Qg5 {[%clk 0:01:42]} 24. Nf3 {[%clk 0:01:15]}  Qd8 {[%clk 0:01:42]} 25. Ne1 {[%clk 0:01:11]}  Qg5 {[%clk 0:00:39]} 26. Nf3 {[%clk 0:00:50]}  Qd8 {[%clk 0:00:25]} 27. Bf1 {[%clk 0:00:29]}  g5 {[%clk 0:00:16]} 28. Ne1 {[%clk 0:00:27]}  g4 {[%clk 0:00:16]} 29. hxg4 {[%clk 0:00:24]}  hxg4 {[%clk 0:00:16]} 30. Nd3 {[%clk 0:00:25]}  Qg5 {[%clk 0:00:03]} 31. g3 {[%clk 0:00:24]}  Bd2 {[%clk 0:00:02]} 32. Qa3 {[%clk 0:00:18]}  Qd8 {[%clk 0:00:02]} 33. Nc5 {[%clk 0:00:15]}  Be8 {[%clk 0:00:01]} 34. Nxb7 {[%clk 0:00:08]}  Qxb6 {[%clk 0:00:02]} 35. Nd6 {[%clk 0:00:09]}  Qd8 {[%clk 0:00:02]} 36. b4 {[%clk 0:00:06]}  Bg5 {[%clk 0:00:02]} 37. Qd3 {[%clk 0:00:05]}  Be7 {[%clk 0:00:02]} 38. Nb7 {[%clk 0:00:04]}  Qc7 {[%clk 0:00:02]} 39. Qe2 {[%clk 0:00:02]}  Rxb7 {[%clk 0:00:02]} 40. Qxg4+ {[%clk 0:00:02]}  Kf8 {[%clk 0:00:03]} 41. Qh5 {[%clk 0:00:01]}  Bg5 {[%clk 0:00:02]} 42. Qh8+ {[%clk 0:00:01]}  Ke7 {[%clk 0:00:03]} 43. Ra8 {[%clk 0:00:01]}  Rb8 {[%clk 0:00:03]} 0-1


[Site "https://www.chess.com"]

[Event "Titled Tuesday Blitz March 21 Late 2023"]
[White "Melikyan, Gnel"]
[Black "Ozen, Bahadir"]
[WhiteFideId "54109990"]
[BlackFideId "6337058"]
[WhiteElo "2138"]
[BlackElo "2503"]
[Result "1/2-1/2"]
[Round "03"]
[TimeControl "180+2"]
[Date "2023.03.21"]
[WhiteClock "0:02:50"]
[BlackClock "0:02:18"]

1. e4 {[%clk 0:03:00]}  e5 {[%clk 0:02:52]} 2. Nf3 {[%clk 0:03:00]}  Nc6 {[%clk 0:02:53]} 3. d4 {[%clk 0:03:00]}  exd4 {[%clk 0:02:53]} 4. Nxd4 {[%clk 0:03:01]}  Nf6 {[%clk 0:02:53]} 5. Nxc6 {[%clk 0:03:01]}  bxc6 {[%clk 0:02:54]} 6. e5 {[%clk 0:03:01]}  Qe7 {[%clk 0:02:55]} 7. Qe2 {[%clk 0:03:02]}  Nd5 {[%clk 0:02:55]} 8. c4 {[%clk 0:03:02]}  Ba6 {[%clk 0:02:55]} 9. b3 {[%clk 0:03:03]}  g6 {[%clk 0:02:55]} 10. g3 {[%clk 0:03:03]}  Bg7 {[%clk 0:02:55]} 11. Bb2 {[%clk 0:03:04]}  O-O {[%clk 0:02:54]} 12. Bg2 {[%clk 0:03:04]}  Rae8 {[%clk 0:02:54]} 13. O-O {[%clk 0:03:05]}  Bxe5 {[%clk 0:02:55]} 14. Qxe5 {[%clk 0:03:06]}  Qxe5 {[%clk 0:02:56]} 15. Bxe5 {[%clk 0:03:06]}  Rxe5 {[%clk 0:02:57]} 16. cxd5 {[%clk 0:03:07]}  Bxf1 {[%clk 0:02:57]} 17. Kxf1 {[%clk 0:03:06]}  cxd5 {[%clk 0:02:58]} 18. f4 {[%clk 0:03:01]}  Re3 {[%clk 0:02:53]} 19. Bxd5 {[%clk 0:03:01]}  Rd3 {[%clk 0:02:45]} 20. Bf3 {[%clk 0:03:00]}  Re8 {[%clk 0:02:34]} 21. Kf2 {[%clk 0:02:58]}  c6 {[%clk 0:02:21]} 22. Be2 {[%clk 0:02:49]}  Rde3 {[%clk 0:02:21]} 23. Bd1 {[%clk 0:02:49]}  Rd3 {[%clk 0:02:18]} 24. Be2 {[%clk 0:02:49]}  Rde3 {[%clk 0:02:18]} 25. Bd1 {[%clk 0:02:50]}  Rd3 {[%clk 0:02:18]} 26. Be2 {[%clk 0:02:50]} 1/2-1/2


[Site "https://www.chess.com"]

[Event "Titled Tuesday Blitz March 21 Late 2023"]
[White "Averjanov, Alexey"]
[Black "Filgueira, Hernan"]
[WhiteFideId "14109867"]
[BlackFideId "101770"]
[WhiteElo "2811"]
[BlackElo "2363"]
[Result "1/2-1/2"]
[Round "03"]
[TimeControl "180+2"]
[Date "2023.03.21"]
[WhiteClock "0:00:06"]
[BlackClock "0:00:03"]

1. d4 {[%clk 0:03:00]}  d5 {[%clk 0:02:58]} 2. c4 {[%clk 0:03:00]}  e6 {[%clk 0:02:58]} 3. Nf3 {[%clk 0:03:00]}  c6 {[%clk 0:02:58]} 4. e3 {[%clk 0:03:00]}  Nf6 {[%clk 0:02:57]} 5. Nbd2 {[%clk 0:02:59]}  Nbd7 {[%clk 0:02:52]} 6. Bd3 {[%clk 0:02:59]}  c5 {[%clk 0:02:42]} 7. O-O {[%clk 0:02:54]}  Be7 {[%clk 0:02:40]} 8. b3 {[%clk 0:02:50]}  b6 {[%clk 0:02:38]} 9. Bb2 {[%clk 0:02:50]}  Bb7 {[%clk 0:02:37]} 10. Qe2 {[%clk 0:02:50]}  a6 {[%clk 0:02:32]} 11. Rac1 {[%clk 0:02:50]}  O-O {[%clk 0:02:31]} 12. Rfd1 {[%clk 0:02:50]}  Re8 {[%clk 0:02:30]} 13. e4 {[%clk 0:02:50]}  dxe4 {[%clk 0:02:30]} 14. Nxe4 {[%clk 0:02:51]}  Nxe4 {[%clk 0:02:29]} 15. Bxe4 {[%clk 0:02:51]}  Bxe4 {[%clk 0:02:29]} 16. Qxe4 {[%clk 0:02:52]}  Bf6 {[%clk 0:02:23]} 17. Ne5 {[%clk 0:02:50]}  Bxe5 {[%clk 0:02:04]} 18. dxe5 {[%clk 0:02:49]}  Qc7 {[%clk 0:02:05]} 19. Rd6 {[%clk 0:02:48]}  Nf8 {[%clk 0:02:02]} 20. Rcd1 {[%clk 0:02:48]}  b5 {[%clk 0:01:59]} 21. g3 {[%clk 0:02:38]}  Rec8 {[%clk 0:01:53]} 22. h4 {[%clk 0:02:31]}  bxc4 {[%clk 0:01:48]} 23. Qxc4 {[%clk 0:02:29]}  a5 {[%clk 0:01:48]} 24. h5 {[%clk 0:02:25]}  h6 {[%clk 0:01:47]} 25. Bc1 {[%clk 0:02:17]}  a4 {[%clk 0:01:42]} 26. Qg4 {[%clk 0:02:10]}  Kh8 {[%clk 0:01:40]} 27. bxa4 {[%clk 0:01:55]}  c4 {[%clk 0:01:36]} 28. Qf3 {[%clk 0:01:31]}  Rxa4 {[%clk 0:01:34]} 29. a3 {[%clk 0:01:30]}  c3 {[%clk 0:01:31]} 30. Qd3 {[%clk 0:01:15]}  Raa8 {[%clk 0:01:26]} 31. Bf4 {[%clk 0:01:09]}  Rxa3 {[%clk 0:01:23]} 32. Rc1 {[%clk 0:01:06]}  Ra4 {[%clk 0:01:16]} 33. Qb5 {[%clk 0:00:59]}  Rc4 {[%clk 0:01:14]} 34. Rc2 {[%clk 0:00:57]}  Rb8 {[%clk 0:01:07]} 35. Qa6 {[%clk 0:00:49]}  Rb2 {[%clk 0:00:57]} 36. Rc1 {[%clk 0:00:42]}  c2 {[%clk 0:00:53]} 37. Kh2 {[%clk 0:00:39]}  Rb1 {[%clk 0:00:49]} 38. Qa3 {[%clk 0:00:32]}  Rxc1 {[%clk 0:00:47]} 39. Bxc1 {[%clk 0:00:33]}  Kg8 {[%clk 0:00:19]} 40. Qa8 {[%clk 0:00:29]}  Qc8 {[%clk 0:00:19]} 41. Rd8 {[%clk 0:00:23]}  Qxa8 {[%clk 0:00:18]} 42. Rxa8 {[%clk 0:00:24]}  Rb4 {[%clk 0:00:16]} 43. Ba3 {[%clk 0:00:21]}  f6 {[%clk 0:00:15]} 44. exf6 {[%clk 0:00:18]}  gxf6 {[%clk 0:00:13]} 45. Rc8 {[%clk 0:00:13]}  Ra4 {[%clk 0:00:08]} 46. Bxf8 {[%clk 0:00:10]}  c1=Q {[%clk 0:00:08]} 47. Rxc1 {[%clk 0:00:09]}  Kxf8 {[%clk 0:00:08]} 48. Rc7 {[%clk 0:00:09]}  Ra5 {[%clk 0:00:08]} 49. g4 {[%clk 0:00:09]}  f5 {[%clk 0:00:07]} 50. f3 {[%clk 0:00:08]}  fxg4 {[%clk 0:00:07]} 51. fxg4 {[%clk 0:00:09]}  Ra2+ {[%clk 0:00:07]} 52. Kg3 {[%clk 0:00:09]}  Ra3+ {[%clk 0:00:07]} 53. Kf4 {[%clk 0:00:09]}  Ra4+ {[%clk 0:00:06]} 54. Kg3 {[%clk 0:00:09]}  Ra3+ {[%clk 0:00:06]} 55. Kh4 {[%clk 0:00:09]}  Kg8 {[%clk 0:00:06]} 56. Re7 {[%clk 0:00:09]}  Re3 {[%clk 0:00:06]} 57. Rd7 {[%clk 0:00:07]}  e5 {[%clk 0:00:05]} 58. Rd6 {[%clk 0:00:07]}  Kg7 {[%clk 0:00:05]} 59. Rd7+ {[%clk 0:00:07]}  Kg8 {[%clk 0:00:05]} 60. g5 {[%clk 0:00:06]}  Re4+ {[%clk 0:00:05]} 61. Kg3 {[%clk 0:00:05]}  hxg5 {[%clk 0:00:05]} 62. Rd6 {[%clk 0:00:04]}  Kh7 {[%clk 0:00:05]} 63. Rg6 {[%clk 0:00:04]}  Re3+ {[%clk 0:00:05]} 64. Kf2 {[%clk 0:00:03]}  Re4 {[%clk 0:00:02]} 65. Rxg5 {[%clk 0:00:04]}  Kh6 {[%clk 0:00:02]} 66. Rf5 {[%clk 0:00:04]}  Rf4+ {[%clk 0:00:03]} 67. Rxf4 {[%clk 0:00:05]}  exf4 {[%clk 0:00:03]} 68. Kf3 {[%clk 0:00:05]}  Kxh5 {[%clk 0:00:03]} 69. Kxf4 {[%clk 0:00:06]} 1/2-1/2


[Site "https://www.chess.com"]

[Event "Titled Tuesday Blitz March 21 Late 2023"]
[White "Al Hosani, Omran"]
[Black "Vakhlamov, Igor L."]
[WhiteFideId "9308733"]
[BlackFideId "24126748"]
[WhiteElo "2177"]
[BlackElo "2400"]
[Result "1/2-1/2"]
[Round "03"]
[TimeControl "180+2"]
[Date "2023.03.21"]
[WhiteClock "0:00:22"]
[BlackClock "0:00:15"]

1. d4 {[%clk 0:03:00]}  d5 {[%clk 0:02:59]} 2. c4 {[%clk 0:03:00]}  e6 {[%clk 0:02:59]} 3. Nc3 {[%clk 0:03:00]}  c5 {[%clk 0:03:00]} 4. e3 {[%clk 0:02:59]}  Nf6 {[%clk 0:03:00]} 5. Nf3 {[%clk 0:02:55]}  Nc6 {[%clk 0:03:01]} 6. cxd5 {[%clk 0:02:55]}  exd5 {[%clk 0:03:02]} 7. Bd3 {[%clk 0:02:54]}  Bd6 {[%clk 0:02:54]} 8. h3 {[%clk 0:02:50]}  O-O {[%clk 0:02:54]} 9. O-O {[%clk 0:02:50]}  Re8 {[%clk 0:02:53]} 10. Re1 {[%clk 0:02:47]}  h6 {[%clk 0:02:50]} 11. dxc5 {[%clk 0:02:43]}  Bxc5 {[%clk 0:02:51]} 12. b3 {[%clk 0:02:44]}  d4 {[%clk 0:02:48]} 13. Na4 {[%clk 0:02:40]}  Bb4 {[%clk 0:02:48]} 14. Bd2 {[%clk 0:02:32]}  dxe3 {[%clk 0:02:43]} 15. Rxe3 {[%clk 0:02:31]}  Rxe3 {[%clk 0:02:05]} 16. Bxe3 {[%clk 0:02:29]}  Be6 {[%clk 0:02:02]} 17. Nc5 {[%clk 0:02:25]}  Bxc5 {[%clk 0:02:01]} 18. Bxc5 {[%clk 0:02:24]}  Qd5 {[%clk 0:02:02]} 19. Be3 {[%clk 0:02:14]}  Rd8 {[%clk 0:02:02]} 20. Be2 {[%clk 0:02:11]}  Qa5 {[%clk 0:01:57]} 21. Qe1 {[%clk 0:02:06]}  Qa3 {[%clk 0:01:51]} 22. Qc1 {[%clk 0:02:01]}  Qa5 {[%clk 0:01:47]} 23. Qc5 {[%clk 0:01:48]}  Qxc5 {[%clk 0:01:43]} 24. Bxc5 {[%clk 0:01:48]}  Ne4 {[%clk 0:01:44]} 25. Be3 {[%clk 0:01:48]}  Nc3 {[%clk 0:01:43]} 26. Bf1 {[%clk 0:01:47]}  a6 {[%clk 0:01:41]} 27. Kh2 {[%clk 0:01:38]}  Rd7 {[%clk 0:01:36]} 28. Bxa6 {[%clk 0:01:30]}  bxa6 {[%clk 0:01:27]} 29. Rc1 {[%clk 0:01:29]}  Nxa2 {[%clk 0:00:37]} 30. Rxc6 {[%clk 0:01:27]}  Nb4 {[%clk 0:00:36]} 31. Rb6 {[%clk 0:01:20]}  a5 {[%clk 0:00:36]} 32. Rb5 {[%clk 0:01:18]}  Rd5 {[%clk 0:00:32]} 33. Rxd5 {[%clk 0:00:40]}  Bxd5 {[%clk 0:00:32]} 34. Nd4 {[%clk 0:00:40]}  Kf8 {[%clk 0:00:26]} 35. Bf4 {[%clk 0:00:38]}  Nc6 {[%clk 0:00:10]} 36. Nxc6 {[%clk 0:00:29]}  Bxc6 {[%clk 0:00:11]} 37. Bc7 {[%clk 0:00:29]}  a4 {[%clk 0:00:11]} 38. bxa4 {[%clk 0:00:26]}  Bxa4 {[%clk 0:00:12]} 39. Bb6 {[%clk 0:00:25]}  f5 {[%clk 0:00:12]} 40. Kg3 {[%clk 0:00:25]}  Kf7 {[%clk 0:00:12]} 41. f4 {[%clk 0:00:24]}  g5 {[%clk 0:00:12]} 42. h4 {[%clk 0:00:18]}  g4 {[%clk 0:00:11]} 43. Kf2 {[%clk 0:00:18]}  Bc6 {[%clk 0:00:11]} 44. g3 {[%clk 0:00:19]}  Ke6 {[%clk 0:00:11]} 45. Bd4 {[%clk 0:00:18]}  Kd5 {[%clk 0:00:11]} 46. Bg7 {[%clk 0:00:18]}  h5 {[%clk 0:00:12]} 47. Bh6 {[%clk 0:00:18]}  Ke4 {[%clk 0:00:13]} 48. Bg5 {[%clk 0:00:19]}  Bd5 {[%clk 0:00:14]} 49. Bh6 {[%clk 0:00:20]}  Bc4 {[%clk 0:00:15]} 50. Bg5 {[%clk 0:00:20]}  Bd5 {[%clk 0:00:14]} 51. Bh6 {[%clk 0:00:21]}  Bc4 {[%clk 0:00:14]} 52. Bg5 {[%clk 0:00:22]}  Bd5 {[%clk 0:00:15]} 1/2-1/2


[Site "https://www.chess.com"]